Cogmind - Beta 12 @@@ ROGUE MODE // 2023.03.03 @ 17:49:18 Player: Kersh Result: Destroyed by P-70 Sage with Tesla Rifle Performance ------------- Evolutions (6) 3000 Regions Visited (16) 3200 Robots Destroyed (197) 985 Value Destroyed (8299) 8299 Prototype IDs (13) 260 Alien Tech Used (0) 0 Bonus (2986) 2986 TOTAL SCORE: 18730 Bonus ------- High Alert Combat Kills 1224 Follower Combat Kills 443 Entered Garrisons 600 Used RIF Installer 1500 Friendly Fire -781 Cogmind --------- Core Integrity 0/1150 Matter 294/300 Energy 92/100 System Corruption 15% Temperature Cool (27) Movement Core (100) Ox1 Location -4/Factory Parts ------- > --- POWER (1) -------- (None) > --- PROPULSION (5) --- (None) > --- UTILITY (10) ----- Advanced Targeting Computer Advanced Hacking Suite > --- WEAPON (3) ------- Force Lance > --- INVENTORY (5) ---- Advanced Heat Sink Triangulator Improved Weapon Cycler Advanced ECM Suite Medium Insulated Plating Peak State ------------ > --- POWER ------------ Multi-Fission Core > --- PROPULSION ------- Treaded Centrium-Armored Exoskeleton > --- UTILITY ---------- Armored Scrap Engine Advanced Heat Sink Large Storage Unit Advanced Targeting Computer Improved Weapon Cycler Layered Light Armor Plating Advanced Thermal Shield Advanced Hacking Suite > --- WEAPON ----------- Shotgun EM HERF Construct/C Thunder Hammer Phasing Sabre > --- INVENTORY -------- Light Angular Momentum Engine Advanced Heat Sink Advanced Heat Sink Compact Matter Pod Structural Scanner Improved Trap Scanner Improved Sensor Array Advanced ECM Suite Improved Weapon Shielding Hardened Medium Armor Plating Point Defense Array Relay Coupler [NC] Improved System Restoration Module Guided EMP Blaster [Rating: 98] Favorites ----------- Power Constructs Engine Ion Engine Power Core Constructs Propulsion Light Treads Treads Light Treads Leg Aluminum Leg Utility Large Storage Unit Device Armored Scrap Engine Storage Large Storage Unit Processor Advanced Terrain Scan Processor Hackware Advanced Hacking Suite Protection Medium Armor Plating Weapon Constructs Energy Gun Constructs Energy Cannon Constructs Ballistic Gun Light Assault Rifle Ballistic Cannon Light Cannon Launcher Improved Grenade Launcher Special Weapon Plasma Cutter Impact Weapon Thunder Hammer Slashing Weapon Phasing Sabre Piercing Weapon Force Lance Build | -11 -10 -10 -9 -9 -9 -7 -7 -7 -6 -6 -5 -5 -5 -4 -4 -4 ------- Run | Jun Mat Min Mat Sto Rec Fac Gar Fac Fac Ext Fac Gar Fac Fac Gar Fac Slots Evolved 12 | . . . 2 . . 4 . . 2 . 2 . . 2 . . Power . | . . . . . . . . . . . . . . . . . Propulsion 3 | . . . 1 . . 1 . . . . . . . 1 . . Utility 8 | . . . 1 . . 3 . . 1 . 2 . . 1 . . Weapon 1 | . . . . . . . . . 1 . . . . . . . Parts Attached 203 | 7 15 5 31 7 10 13 21 15 13 13 6 12 16 8 4 7 Power 8 | 1 1 . 2 . . 1 . . . . . 1 . . 1 1 Engine 6 | 1 1 . 1 . . . . . . . . 1 . . 1 1 Core 2 | . . . 1 . . 1 . . . . . . . . . . Reactor . | . . . . . . . . . . . . . . . . . Propulsion 23 | 2 3 . 8 1 2 3 3 1 . . . . . . . . Treads 21 | 2 3 . 8 1 2 3 2 . . . . . . . . . Leg 2 | . . . . . . . 1 1 . . . . . . . . Wheel . | . . . . . . . . . . . . . . . . . Hover . | . . . . . . . . . . . . . . . . . Flight . | . . . . . . . . . . . . . . . . . Utility 104 | 2 6 5 8 3 1 7 9 10 8 10 6 6 12 6 1 4 Device 55 | 1 2 3 3 2 1 4 7 7 5 5 5 1 4 3 . 2 Storage 6 | 1 1 2 1 . . . . . . . . . 1 . . . Processor 3 | . . . . . . . 1 1 . . . 1 . . . . Hackware 3 | . . . . . . . . . . . . . 2 1 . . Protection 37 | . 3 . 4 1 . 3 1 2 3 5 1 4 5 2 1 2 Artifact . | . . . . . . . . . . . . . . . . . Weapon 68 | 2 5 . 13 3 7 2 9 4 5 3 . 5 4 2 2 2 Energy Gun 5 | . 1 . 2 . . . . . . . . 1 1 . . . Energy Cannon 13 | . . . 4 1 5 1 . . . 1 . 1 . . . . Ballistic Gun 4 | 2 . . . . . . 1 1 . . . . . . . . Ballistic Cannon 6 | . 2 . 3 . . . 1 . . . . . . . . . Launcher 13 | . 2 . 2 1 . . 5 2 1 . . . . . . . Special Weapon 4 | . . . 1 . . . . . 1 1 . . 1 . . . Impact Weapon 15 | . . . 1 1 2 1 2 . 1 . . 2 2 1 1 1 Slashing Weapon 7 | . . . . . . . . 1 2 1 . 1 . 1 1 . Piercing Weapon 1 | . . . . . . . . . . . . . . . . 1 Special Melee Weapon . | . . . . . . . . . . . . . . . . . Unidentified Prototypes 7 | . . . 2 . . . 1 . 2 . . 1 1 . . . Corrupted Parts 1 | . . . 1 . . . . . . . . . . . . . System Corruption 5 | . . . 5 . . . . . . . . . . . . . Parts Lost 55 | . 4 . . . . 1 8 1 4 4 . 9 4 . 3 17 Power 6 | . 1 . . . . . 1 . . 1 . 1 . . 1 1 Propulsion 9 | . . . . . . . 1 1 1 . . 1 . . . 5 Utility 26 | . 1 . . . . 1 4 . . 2 . 5 3 . . 10 Weapon 14 | . 2 . . . . . 2 . 3 1 . 2 1 . 2 1 Highest Loss Streak 11 | . 2 . . . . 1 4 1 2 2 . 3 2 . 2 11 To Critical Strikes . | . . . . . . . . . . . . . . . . . Average Slot Usage (%) 76 | . 95 99 97 99 90 76 59 67 64 67 74 70 75 73 70 53 Engine 3 | . 13 14 9 . . . . . 4 5 5 . . . 1 3 Core 3 | . . . 1 11 11 6 4 . 1 . . 3 5 5 3 . Treads 10 | . 28 28 33 33 32 11 3 . . . . . . . . 1 Leg 2 | . . . . . . . 5 7 . 6 5 1 . . . . Device 16 | . 4 13 11 11 11 24 19 16 16 17 24 20 19 15 15 12 Storage 7 | . 14 14 11 11 11 7 7 7 6 6 5 5 4 5 5 4 Processor 3 | . . . . . . . 1 7 6 6 5 7 5 5 5 5 Hackware 1 | . . . . . . . . . . . . . 4 10 10 9 Protection 6 | . 8 . 9 10 3 3 3 5 6 5 7 7 8 10 10 6 Energy Gun 1 | . . . 3 . . . 1 . . 1 . 2 1 2 . 2 Energy Cannon 4 | . . . 14 21 14 8 . 3 5 5 5 1 4 2 2 . Ballistic Gun 2 | . 15 . . . 1 4 4 . 3 . . . . . . . Ballistic Cannon 4 | . 7 28 3 . . . 1 2 2 4 5 2 . . 4 . Impact Weapon 1 | . . . . . 1 . 1 2 . . . 2 3 5 2 2 Slashing Weapon 1 | . . . . . . . . 1 2 3 5 5 4 5 2 . Naked Turns . | . . . . . . . . . . . . . . . . . Heaviest Build 70 | 11 34 34 45 43 43 42 47 49 54 58 70 67 67 48 53 43 Greatest Support 97 | 40 40 40 60 60 60 60 65 59 56 69 69 69 97 65 70 47 Greatest Overweight (x) 4 | . . . . . . 1 1 2 1 1 1 1 1 . . 4 Average Overweight (x) . | . . . . . . . . . . . . . . . . . Largest Inventory Capacity 15 | 8 15 15 15 15 15 15 15 15 15 15 15 15 15 10 10 10 Average Capacity 14 | 6 14 15 15 15 15 15 15 15 15 15 15 15 11 10 10 9 Most Carried 15 | 5 15 15 15 15 15 15 15 15 15 15 15 15 15 10 10 9 Average Carried 13 | 2 11 14 14 15 13 12 13 14 13 14 14 13 11 7 8 7 Final Capacity 15 | 8 15 15 15 15 15 15 15 15 15 15 15 15 10 10 10 5 Final Carried 15 | 3 15 15 15 15 13 15 13 14 15 15 15 13 9 10 8 5 Scrap Engine Consumption 188 | . . . . . 25 26 27 14 19 15 4 25 12 12 3 6 Constructs Created 19 | . . . . . 3 2 3 2 . 3 . 3 1 . 1 1 Constructs Modified 54 | . . . . . 1 10 11 3 5 3 . 12 2 4 2 1 Class Distribution -------------------- 41% | Construct 33% | Mutant 15% | Scavenger-Mutant 7% | Hacker-Mutant Dominant Class ---------------- Mutant | -10/Materials Mutant | -10/Mines Scavenger-Mutant | -9/Materials Scavenger-Mutant | -9/Storage Scavenger-Mutant | -9/Recycling Construct | -7/Factory Construct | -7/Garrison Construct | -7/Factory Construct | -6/Factory Construct | -6/Extension Construct | -5/Factory Mutant | -5/Garrison Mutant | -5/Factory Hacker-Mutant | -4/Factory Hacker-Mutant | -4/Garrison Hacker-Mutant | -4/Factory Resources | -11 -10 -10 -9 -9 -9 -7 -7 -7 -6 -6 -5 -5 -5 -4 -4 -4 ----------- Run | Jun Mat Min Mat Sto Rec Fac Gar Fac Fac Ext Fac Gar Fac Fac Gar Fac Matter Collected 3679 | 276 436 212 445 98 200 160 583 208 251 156 92 207 105 173 70 7 Remotely . | . . . . . . . . . . . . . . . . . Salvage Created 11155 | 43 571 65 417 372 683 561 1821 364 564 1159 710 1754 475 302 1105 189 Parts 409 | 4 30 1 17 18 29 28 82 13 25 41 19 53 17 9 22 1 Haulers Intercepted 7 | . . . 2 . 1 2 . . . . 1 . 1 . . . Recyclers Shooed 3 | . . . 2 1 . . . . . . . . . . . . Parts Field Recycled . | . . . . . . . . . . . . . . . . . Retrieved Matter . | . . . . . . . . . . . . . . . . . Parts Self-Destructed . | . . . . . . . . . . . . . . . . . Prevented . | . . . . . . . . . . . . . . . . . Kills | -11 -10 -10 -9 -9 -9 -7 -7 -7 -6 -6 -5 -5 -5 -4 -4 -4 ------- Run | Jun Mat Min Mat Sto Rec Fac Gar Fac Fac Ext Fac Gar Fac Fac Gar Fac Combat Hostiles Destroyed 160 | . 13 2 8 5 7 8 28 9 12 14 6 23 8 6 9 2 Melee 5 | . . . . . . . . . . . . . 1 . 3 1 Guns 21 | . 6 . . . 1 . 7 2 3 1 . . 1 . . . Cannons 47 | . 3 2 3 5 6 8 1 3 3 1 . 2 4 3 3 . AOE 40 | . 4 . 5 . . . 19 4 6 . . . . 2 . . Classes Destroyed 17 | 1 3 . 5 . 4 . 1 . . 2 . 1 . . . . Worker 7 | . 1 . 1 . . 1 . . . 2 1 . 1 . . . Tunneler 2 | 2 . . . . . . . . . . . . . . . . Hauler 7 | . . . 2 . 1 2 . . . . 1 . 1 . . . Recycler 9 | . . . 2 1 1 1 . . . 1 1 . . 1 . 1 Carrier 1 | . . . . . . . . . . 1 . . . . . . Mechanic 1 | . 1 . . . . . . . . . . . . . . . Watcher 8 | . . . 1 1 . . . 1 1 1 2 1 . . . . Swarmer 24 | . . . 3 . . . 6 . . . . . 4 5 4 2 Cutter 4 | . . . . . . . . . . . . 4 . . . . Grunt 75 | . 13 2 3 2 . 5 18 4 6 5 2 12 . . 3 . Brawler 1 | . . . . . . . 1 . . . . . . . . . Duelist 5 | . . . . . 1 . 2 . 1 . . 1 . . . . Sentry 28 | . . . 2 3 3 . . 3 3 4 2 3 3 1 1 . Demolisher 1 | . . . . . 1 . . . . . . . . . . . Hunter 12 | . . . . . 1 1 1 1 2 3 1 1 1 . . . Programmer 6 | . . . . . 1 2 . 1 . . 1 . . . 1 . Behemoth 5 | . . . . . . . . . . 2 . 3 . . . . Thug 1 | . . . . . . . . . . . 1 . . . . . Best Kill Streak 11 | 2 4 2 3 3 2 3 8 3 6 8 3 11 4 3 2 2 Combat Bots Only 11 | . 2 2 3 2 2 3 8 3 6 5 2 11 3 3 2 2 Max Kills in Single Turn 5 | 1 3 1 1 1 1 1 5 2 3 2 2 2 1 2 1 1 Gunslinging . | . . . . . . . . . . . . . . . . . Exploded 5 | . 1 . 1 . . . 5 2 2 . . . . 2 . . Melee 1 | . . . . . . . . . . . . . 1 . 1 1 Uniques/NPCs Destroyed . | . . . . . . . . . . . . . . . . . Combat | -11 -10 -10 -9 -9 -9 -7 -7 -7 -6 -6 -5 -5 -5 -4 -4 -4 -------- Run | Jun Mat Min Mat Sto Rec Fac Gar Fac Fac Ext Fac Gar Fac Fac Gar Fac Damage Taken 16484 | . 927 139 380 121 74 734 2204 1037 1391 1485 158 2610 1091 526 811 2796 Core 2541 | . 106 33 51 35 17 123 244 173 88 160 80 129 133 98 66 1005 Absorbed by Shields . | . . . . . . . . . . . . . . . . . Redirected to Shielding 164 | . . . . . . . . . . 164 . . . . . . Regen/Repaired (Parts) 3571 | . . . 67 31 . 151 325 537 495 415 100 918 58 301 173 . Core Remaining (%) 62 | 100 . 44 . . 74 . . 22 . 70 . . 65 . . . Volleys Fired 468 | 3 54 4 33 11 20 37 83 31 29 28 18 59 25 19 14 . Largest 2 | 2 2 2 2 2 2 2 2 2 2 2 1 2 2 1 2 . Hottest 182 | 40 70 70 136 136 136 116 79 111 111 161 74 150 170 108 182 . Shots Fired 715 | 6 102 8 60 23 43 74 103 37 55 33 18 73 34 19 27 . Gun 248 | 6 78 . 4 . 2 8 74 17 16 8 . 23 12 . . . Cannon 421 | . 20 8 48 23 41 66 12 16 36 23 18 50 14 19 27 . Launcher 35 | . 4 . 7 . . . 17 4 3 . . . . . . . Special 11 | . . . 1 . . . . . . 2 . . 8 . . . Kinetic 230 | 6 98 8 4 . . . 60 17 16 . . . . 7 14 . Thermal 395 | . . . 49 23 43 66 12 16 36 33 18 73 26 . . . Explosive 35 | . 4 . 7 . . . 17 4 3 . . . . . . . Electromagnetic 47 | . . . . . . 8 14 . . . . . . 12 13 . Robot Hit Streak 37 | 4 14 10 13 9 23 13 37 30 10 8 11 8 20 13 14 . Robot Miss Streak 10 | 1 5 . 6 2 1 3 2 3 4 7 10 10 5 3 3 . Penetration Max 1 | . . . . . . . 1 . . . . . . . . . Secondary Targets . | . . . . . . . . . . . . . . . . . Shots Hit Robots 651 | 4 69 7 34 11 35 50 100 36 38 27 13 105 45 13 58 6 Core Hits 421 | 3 30 3 22 7 12 25 129 23 46 30 6 34 18 7 24 2 Critical Kills 42 | . . . . . . . . . . 14 11 17 . . . . Critical Parts Destroyed 16 | . . . . . . . 2 3 . . . 3 2 . 4 2 Critical Strikes 71 | . 1 1 . . . . 3 4 . 14 11 23 8 . 4 2 Burn 2 | . . . . . . . . . . . . . 2 . . . Meltdown 42 | . . . . . . . . . . 14 11 17 . . . . Destroy 2 | . . . . . . . . 2 . . . . . . . . Blast 2 | . 1 1 . . . . . . . . . . . . . . Corrupt 1 | . . . . . . . 1 . . . . . . . . . Smash 15 | . . . . . . . 2 2 . . . 3 2 . 4 2 Sever 7 | . . . . . . . . . . . . 3 4 . . . Melee Attacks 224 | . . . 1 1 1 1 20 14 3 31 5 59 23 2 48 15 Impact 99 | . . . 1 1 1 1 20 9 . . . 26 4 1 23 12 Slashing 122 | . . . . . . . . 5 3 31 5 33 19 1 25 . Piercing 3 | . . . . . . . . . . . . . . . . 3 Sneak Attacks 10 | . . . . . . . . . . . . 7 2 . . 1 Combat Hostiles . | . . . . . . . . . . . . . . . . . Follow-up Attacks 9 | . . . . . . . . . . . . 4 3 . 2 . Damage Inflicted 24803 | 31 945 123 1255 243 820 908 5285 1206 2346 769 200 4820 1437 581 3415 419 Guns 3694 | 31 491 . 63 . 35 52 1452 254 324 102 . 610 280 . . . Cannons 5974 | . 140 123 534 243 769 828 185 249 423 421 200 587 332 470 470 . Explosions 5633 | . 311 . 647 . . 28 2327 620 1589 . . . . 111 . . Melee 9210 | . . . . . . . 1299 83 . 34 . 3623 823 . 2945 403 Ramming 258 | . 3 . . . 16 . 22 . 10 189 . . 2 . . 16 Kinetic 3040 | 31 631 123 38 . . . 1249 254 324 . . . . 127 263 . Thermal 7089 | . . . 570 243 804 856 609 249 1092 546 200 1197 612 111 . . Explosive 4401 | . 311 . 647 . . . 1903 620 920 . . . . . . . Electromagnetic 805 | . . . . . . 52 203 . . . . . . 343 207 . Impact 3968 | . . . . . . . 1299 83 . . . 1054 232 . 957 343 Slashing 5182 | . . . . . . . . . . 34 . 2569 591 . 1988 . Piercing 60 | . . . . . . . . . . . . . . . . 60 Highest Corruption 15 | . . . 5 7 8 2 2 2 . 3 . . . 1 3 15 Average Corruption 3 | . . . 5 5 7 1 2 2 . 3 . . . 1 1 6 Corruption Purged . | . . . . . . . . . . . . . . . . . Corruption Blocked 8 | . . . . . . . . 8 . . . . . . . . Effects 147 | . . . 30 14 36 3 25 12 . 4 . . . 1 9 13 Message Errors 27 | . . . 5 2 8 1 3 2 . 2 . . . . 1 3 Matter Fused 38 | . . . 5 5 10 . 10 1 . . . . . . 4 3 Heat Flow Errors 17 | . . . 5 1 4 . 2 3 . . . . . . . 2 Energy Discharges 24 | . . . 5 2 8 2 3 2 . . . . . 1 . 1 Parts Rejected 4 | . . . 2 . . . 1 . . . . . . . . 1 Parts Fused 2 | . . . . 1 1 . . . . . . . . . . . Data Loss (minor) 18 | . . . 5 1 1 . 5 2 . 1 . . . . 2 1 Data Loss (major) 6 | . . . 2 1 . . . 2 . 1 . . . . . . Misfires 5 | . . . . 1 4 . . . . . . . . . . . Alerts 4 | . . . 1 . . . 1 . . . . . . . 2 . Misdirections 2 | . . . . . . . . . . . . . . . . 2 Overload Shots . | . . . . . . . . . . . . . . . . . Overflow Damage 1818 | . 1 . 94 . 28 2 373 49 69 . . 303 207 11 418 263 Projectiles 43 | . 1 . 1 . 28 2 5 . . . . . . 6 . . Explosions 223 | . . . 93 . . . 56 . 69 . . . . 5 . . Melee 1552 | . . . . . . . 312 49 . . . 303 207 . 418 263 Knockbacks 11 | . 2 . . . . . 1 2 . . . . 1 . 4 1 Impact 8 | . . . . . . . 1 2 . . . . 1 . 3 1 Kinetic 3 | . 2 . . . . . . . . . . . . . 1 . Secondary . | . . . . . . . . . . . . . . . . . Self-Inflicted Damage 1163 | . 227 . 50 . . 31 460 164 181 . . . 1 49 . . Shots 29 | . 6 . 3 . . 1 12 2 4 . . . . 1 . . Rammed 13 | . 3 . . . 1 . 4 . . . . . 1 . . 4 Targets Rammed 58 | . 3 . . . 1 . 5 . 1 43 . . 1 . . 4 Kicked 45 | . . . . . . . 1 . 1 43 . . . . . . Crushed . | . . . . . . . . . . . . . . . . . Highest Temperature 266 | . 148 72 248 91 240 72 198 266 99 63 40 132 197 36 24 190 Average Temperature 56 | . 49 37 63 32 76 36 88 89 25 30 23 41 73 15 12 107 Received Heat Transfer 3327 | . 372 69 102 45 9 198 405 243 354 327 9 783 144 36 105 126 Effects 2 | . . . 1 . . . . 1 . . . . . . . . Interference 2 | . . . 1 . . . . 1 . . . . . . . . Siege Activations . | . . . . . . . . . . . . . . . . . Robots Corrupted 3 | . . . . . . . . . . . . . . 1 2 . Combat Hostiles 3 | . . . . . . . . . . . . . . 1 2 . Parts Fried 24 | . . . . . . . 1 3 . . . 6 1 5 7 1 Impact Corruptions 40 | . . . . . . . 7 2 . . . 9 4 . 9 9 Robots Melted 43 | . . . . . . . . . . 14 11 17 1 . . . Combat Hostiles 36 | . . . . . . . . . . 12 6 17 1 . . . Parts Melted 84 | . . . 2 . 2 5 . 3 2 23 16 28 3 . . . Heat Transferred 11811 | . . . 1073 407 1406 1776 850 250 875 1273 475 2308 1018 100 . . Parts Sabotaged 1 | . . . . . . . . . 1 . . . . . . . Parts Stolen . | . . . . . . . . . . . . . . . . . Parts Stripped . | . . . . . . . . . . . . . . . . . Power Chain Reactions 7 | . . . . . . 1 4 . 1 . . . . 1 . . Missiles Intercepted . | . . . . . . . . . . . . . . . . . Alert | -11 -10 -10 -9 -9 -9 -7 -7 -7 -6 -6 -5 -5 -5 -4 -4 -4 ------- Run | Jun Mat Min Mat Sto Rec Fac Gar Fac Fac Ext Fac Gar Fac Fac Gar Fac Peak Influence 1326 | 10 223 70 170 277 111 148 1326 1036 744 521 291 1168 844 373 628 449 Initial 695 | . 6 70 . . 87 16 9 695 406 340 214 203 613 218 261 329 Average 348 | 4 108 35 41 122 51 48 493 833 610 388 203 672 652 221 380 342 Maximum Alert Level 4 | . 1 . . 1 . . 4 3 3 2 1 4 3 1 2 2 Low Security (%) 41 | 100 94 100 100 80 100 100 12 . . . 37 . . 21 . 6 Level 1 22 | . 5 . . 19 . . 43 . . 62 62 9 . 78 66 73 Level 2 20 | . . . . . . . 24 11 60 37 . 52 70 . 33 19 Level 3 14 | . . . . . . . 12 88 39 . . 37 29 . . . Level 4 1 | . . . . . . . 7 . . . . . . . . . Level 5 . | . . . . . . . . . . . . . . . . . High Security . | . . . . . . . . . . . . . . . . . Max Security . | . . . . . . . . . . . . . . . . . Squads Dispatched 29 | . 5 1 1 . . 2 . 3 3 3 5 . 3 2 . 1 Investigation 6 | . 2 1 . . . . . 2 . 1 . . . . . . Extermination 4 | . . . . . . 1 . 1 . . . . . 1 . 1 Reinforcement 14 | . 3 . 1 . . 1 . . 1 2 2 . 3 1 . . Assault 2 | . . . . . . . . . 2 . . . . . . . Garrison 3 | . . . . . . . . . . . 3 . . . . . Intercept . | . . . . . . . . . . . . . . . . . Searches Triggered . | . . . . . . . . . . . . . . . . . Construction Impeded 1 | . . . . . . . . . 1 . . . . . . . Haulers Reinforced . | . . . . . . . . . . . . . . . . . Active Scanning Responses . | . . . . . . . . . . . . . . . . . Cargo Convoy Interrupts 1 | . . . . . . . . 1 . . . . . . . . Stealth | -11 -10 -10 -9 -9 -9 -7 -7 -7 -6 -6 -5 -5 -5 -4 -4 -4 --------- Run | Jun Mat Min Mat Sto Rec Fac Gar Fac Fac Ext Fac Gar Fac Fac Gar Fac Distress Signals 12 | . 2 . 1 . . 1 . . 1 3 . . 1 1 . 2 Communications Jammed . | . . . . . . . . . . . . . . . . . Distress Signals . | . . . . . . . . . . . . . . . . . Times Spotted 287 | . 24 2 22 14 4 11 30 11 23 21 13 25 33 16 15 23 Peak Tracking Total 14 | . 4 2 5 3 2 3 7 4 9 4 4 6 14 7 4 10 Tactical Retreats 28 | . 1 . 2 . . . 1 1 2 3 2 1 3 3 4 5 Traps | -11 -10 -10 -9 -9 -9 -7 -7 -7 -6 -6 -5 -5 -5 -4 -4 -4 ------- Run | Jun Mat Min Mat Sto Rec Fac Gar Fac Fac Ext Fac Gar Fac Fac Gar Fac Traps Triggered 25 | . 4 1 . 1 . . 5 1 1 2 . 6 1 . 2 1 Indirectly . | . . . . . . . . . . . . . . . . . Trap Hack Attempts . | . . . . . . . . . . . . . . . . . Triggered . | . . . . . . . . . . . . . . . . . Disarmed . | . . . . . . . . . . . . . . . . . Reprogrammed 6 | . . . . . . . . 6 . . . . . . . . Reused 1 | . . . . . . . . 1 . . . . . . . . Traps Extracted . | . . . . . . . . . . . . . . . . . Installed . | . . . . . . . . . . . . . . . . . Triggered 3 | . . . . . . . . 2 . . . . 1 . . . Machines | -11 -10 -10 -9 -9 -9 -7 -7 -7 -6 -6 -5 -5 -5 -4 -4 -4 ---------- Run | Jun Mat Min Mat Sto Rec Fac Gar Fac Fac Ext Fac Gar Fac Fac Gar Fac Machines Disabled 20 | . 3 . . . 1 . 1 4 5 2 . 2 1 1 . . Max in Single Turn 5 | . 3 . . . 1 . 1 2 5 . . 1 1 1 . . Garrison Access 3 | . . . . . . . . 2 . . . . . . . 1 Garrison Relay 1 | . . . . . . . 1 . . . . . . . . . Energy Cycler 1 | . . . . . . . . . . 1 . . . . . . Machines Repaired . | . . . . . . . . . . . . . . . . . Machines Sabotaged . | . . . . . . . . . . . . . . . . . Overloaded Fab Kills . | . . . . . . . . . . . . . . . . . Hacking | -11 -10 -10 -9 -9 -9 -7 -7 -7 -6 -6 -5 -5 -5 -4 -4 -4 --------- Run | Jun Mat Min Mat Sto Rec Fac Gar Fac Fac Ext Fac Gar Fac Fac Gar Fac Machines Accessed 58 | . 6 3 8 6 7 1 2 5 . 4 2 1 6 3 1 3 Terminals 39 | . 4 . 7 5 3 . 2 3 . 4 . 1 5 2 1 2 Fabricators 2 | . . . . . . . . . . . 1 . 1 . . . Repair Stations 3 | . 1 . 1 1 . . . . . . . . . . . . Recycling Units 5 | . 1 . . . 4 . . . . . . . . . . . Scanalyzers . | . . . . . . . . . . . . . . . . . Garrison Access 6 | . . . . . . 1 . 2 . . 1 . . 1 . 1 Total Hacks 114 | . 16 3 23 15 12 1 3 10 . 5 3 2 7 6 2 6 Successful 62 | . 8 3 14 6 8 1 . 5 . 3 3 . 4 3 1 3 Failed 52 | . 8 . 9 9 4 . 3 5 . 2 . 2 3 3 1 3 Catastrophic 15 | . 2 . 1 6 1 . 2 2 . . . . 1 . . . Database Lockouts . | . . . . . . . . . . . . . . . . . Manual 38 | . 7 . 11 7 4 . . . . 1 . . 2 3 . 3 Terminals 86 | . 13 . 19 12 8 . 3 7 . 5 . 2 6 4 2 5 Fabricators 2 | . . . . . . . . . . . 1 . 1 . . . Repair Stations 9 | . 2 . 4 3 . . . . . . . . . . . . Recycling Units 5 | . 1 . . . 4 . . . . . . . . . . . Scanalyzers . | . . . . . . . . . . . . . . . . . Garrison Access 9 | . . . . . . 1 . 3 . . 2 . . 2 . 1 Terminal Hacks 37 | . 7 3 8 4 3 . . 2 . 3 . . 3 1 1 2 Record 1 | . . . . . . . . . . . . . 1 . . . Part Schematic 1 | . . . . . . . . . . . . . . . . 1 Robot Analysis 3 | . 1 . 1 . 1 . . . . . . . . . . . Prototype ID Bank 1 | . 1 . . . . . . . . . . . . . . . Open Door 7 | . . 3 . 1 . . . . . 3 . . . . . . Open DSF 3 | . . . . . . . . 1 . . . . 2 . . . Level Access Points 1 | . . . . . . . . . . . . . . 1 . . Branch Access Points 2 | . 1 . 1 . . . . . . . . . . . . . Terminal Index 3 | . . . 1 1 1 . . . . . . . . . . . Alert Level 2 | . . . 1 . 1 . . . . . . . . . . . Unreport Threat 3 | . 1 . 1 . . . . . . . . . . . . 1 Locate Traps 3 | . 1 . 1 1 . . . . . . . . . . . . Reprogram Traps 1 | . . . . . . . . 1 . . . . . . . . Maintenance Status 1 | . 1 . . . . . . . . . . . . . . . Patrol Status 1 | . 1 . . . . . . . . . . . . . . . Zone Layout 3 | . . . 2 1 . . . . . . . . . . . . Security Stations 1 | . . . . . . . . . . . . . . . 1 . Fabricator Hacks 2 | . . . . . . . . . . . 1 . 1 . . . Network Status 2 | . . . . . . . . . . . 1 . 1 . . . Repair Station Hacks 6 | . . . 4 2 . . . . . . . . . . . . Scan Component 3 | . . . 2 1 . . . . . . . . . . . . Repair 3 | . . . 2 1 . . . . . . . . . . . . Recycling Unit Hacks 3 | . . . . . 3 . . . . . . . . . . . Retrieve Components 3 | . . . . . 3 . . . . . . . . . . . Scanalyzer . | . . . . . . . . . . . . . . . . . Garrison Access Hacks 9 | . . . . . . 1 . 3 . . 2 . . 2 . 1 Unlock Access 3 | . . . . . . 1 . . . . 1 . . 1 . . Seal Access 3 | . . . . . . . . 2 . . . . . . . 1 Coupler Status 3 | . . . . . . . . 1 . . 1 . . 1 . . Unauthorized Hacks 5 | . 1 . 2 . 2 . . . . . . . . . . . Terminals 4 | . . . 2 . 2 . . . . . . . . . . . Assimilate 1 | . . . 1 . . . . . . . . . . . . . Botnet 3 | . . . 1 . 2 . . . . . . . . . . . Fabricators . | . . . . . . . . . . . . . . . . . Repair Stations . | . . . . . . . . . . . . . . . . . Recycling Units 1 | . 1 . . . . . . . . . . . . . . . Reject 1 | . 1 . . . . . . . . . . . . . . . Scanalyzers . | . . . . . . . . . . . . . . . . . Garrison Access . | . . . . . . . . . . . . . . . . . Data Cores Recovered . | . . . . . . . . . . . . . . . . . Used . | . . . . . . . . . . . . . . . . . Hacking Detections 34 | . 4 . 4 6 3 . 2 2 . 3 1 1 3 3 1 1 Full Trace Events 3 | . . . . 1 . . . 2 . . . . . . . . Feedback Events . | . . . . . . . . . . . . . . . . . Feedback Blocked . | . . . . . . . . . . . . . . . . . Robot Schematics Acquired . | . . . . . . . . . . . . . . . . . Robots Built . | . . . . . . . . . . . . . . . . . Authchips . | . . . . . . . . . . . . . . . . . Time . | . . . . . . . . . . . . . . . . . Total Robot Build Rating . | . . . . . . . . . . . . . . . . . Part Schematics Acquired 1 | . . . . . . . . . . . . . . . . 1 Parts Built . | . . . . . . . . . . . . . . . . . Authchips . | . . . . . . . . . . . . . . . . . Time . | . . . . . . . . . . . . . . . . . Total Part Build Rating . | . . . . . . . . . . . . . . . . . Parts Repaired 3 | . . . 2 1 . . . . . . . . . . . . Time 102 | . . . 70 32 . . . . . . . . . . . . Parts Recycled . | . . . . . . . . . . . . . . . . . Recycled Matter . | . . . . . . . . . . . . . . . . . Retrieved Matter . | . . . . . . . . . . . . . . . . . Retrieved Components 6 | . . . . . 6 . . . . . . . . . . . Parts Scanalyzed . | . . . . . . . . . . . . . . . . . Part Schematics Acquired . | . . . . . . . . . . . . . . . . . Parts Damaged . | . . . . . . . . . . . . . . . . . Bothacking | -11 -10 -10 -9 -9 -9 -7 -7 -7 -6 -6 -5 -5 -5 -4 -4 -4 ------------ Run | Jun Mat Min Mat Sto Rec Fac Gar Fac Fac Ext Fac Gar Fac Fac Gar Fac Used RIF Installer 3 | . . . . . . . 1 . . . . 1 . . 1 . Command Fork 1 | . . . . . . . . . . . . . . . 1 . Robot Detection 1 | . . . . . . . . . . . . 1 . . . . Robots Hacked 1 | . . . . . . . . . . . . . 1 . . . Non-combat 1 | . . . . . . . . . . . . . 1 . . . Combat . | . . . . . . . . . . . . . . . . . Robot Hacks Applied 6 | . . . . . . . . . . . . . 6 . . . generate_echo 1 | . . . . . . . . . . . . . 1 . . . check_alert 1 | . . . . . . . . . . . . . 1 . . . purge_threat 2 | . . . . . . . . . . . . . 2 . . . reprogram_traps 1 | . . . . . . . . . . . . . 1 . . . formatsys_low 1 | . . . . . . . . . . . . . 1 . . . Relay Couplers Released 5 | . . . . . . . 3 1 . . . . . . . 1 Machine Destruction 5 | . . . . . . . 3 1 . . . . . . . 1 Attached 1 | . . . . . . . . . . . . . 1 . . . Fabnet Peak Effective % . | . . . . . . . . . . . . . . . . . Robots Rewired 5 | . . . . . . . . . . 4 . 1 . . . . Allies Hacked . | . . . . . . . . . . . . . . . . . Hacks Repelled . | . . . . . . . . . . . . . . . . . Allies | -11 -10 -10 -9 -9 -9 -7 -7 -7 -6 -6 -5 -5 -5 -4 -4 -4 -------- Run | Jun Mat Min Mat Sto Rec Fac Gar Fac Fac Ext Fac Gar Fac Fac Gar Fac Total Allies 21 | . . . . 10 . . . . . 9 . 1 1 . . . Largest Group 10 | . . . . 10 4 . . . . 4 1 1 1 . . . Highest-Rated Group 140 | . . . . 88 40 . . . . 140 26 85 26 . . . Highest-Rated Ally 85 | . . . . 16 16 . . . . 39 26 85 26 . . . Total Orders 4 | . . . . . . . . . . 3 . 1 . . . . STAY 1 | . . . . . . . . . . . . 1 . . . . ROAM 3 | . . . . . . . . . . 3 . . . . . . Ally Attacks 138 | . . . . 52 16 . . . . 69 1 . . . . . Total Damage 1626 | . . . . 485 162 . . . . 979 . . . . . . Kills 17 | . . . . 9 . . . . . 8 . . . . . . Allies Corrupted 1 | . . . . 1 . . . . . . . . . . . . Allies Melted 1 | . . . . . . . . . . . 1 . . . . . Intel | -11 -10 -10 -9 -9 -9 -7 -7 -7 -6 -6 -5 -5 -5 -4 -4 -4 ------- Run | Jun Mat Min Mat Sto Rec Fac Gar Fac Fac Ext Fac Gar Fac Fac Gar Fac Robot Analysis Total 3 | . 1 . 1 . 1 . . . . . . . . . . . Derelict Logs Recovered 2 | . . 2 . . . . . . . . . . . . . . Drone Launches . | . . . . . . . . . . . . . . . . . Drone Recoveries . | . . . . . . . . . . . . . . . . . Exploration | -11 -10 -10 -9 -9 -9 -7 -7 -7 -6 -6 -5 -5 -5 -4 -4 -4 ------------- Run | Jun Mat Min Mat Sto Rec Fac Gar Fac Fac Ext Fac Gar Fac Fac Gar Fac Turns Passed 18184 | 158 1108 1304 1407 506 1183 1231 2594 1081 593 1564 702 2414 824 603 483 429 Spaces Moved 10730 | 88 557 781 719 238 623 529 1034 694 489 997 550 1060 1029 518 346 478 Core 6 | 4 . . . . . . . . . . . . . . . 2 Treads 3854 | 84 557 781 719 238 623 378 337 . . . . . . . . 137 Legs 3239 | . . . . . . . 697 428 53 997 550 514 . . . . Wheels 33 | . . . . . . . . 33 . . . . . . . . Hover 1154 | . . . . . . 151 . 233 409 . . 361 . . . . Flight 2444 | . . . . . . . . . 27 . . 185 1029 518 346 339 Fastest Speed 50 | 50 160 160 160 160 160 139 117 76 76 76 110 63 60 63 60 60 Average Speed 121 | 155 160 160 160 160 160 163 139 128 84 112 112 122 65 63 60 64 Slowest Speed 260 | 160 160 160 160 160 160 240 213 260 153 179 167 167 120 63 63 250 Overloaded Moves 537 | . . . . . . . . . . . . . 4 . 251 282 Propulsion Burnouts . | . . . . . . . . . . . . . . . . . Robots Hopped 11 | . . . . . . . . . . . . . 5 4 1 1 Cave-ins Triggered . | . . . . . . . . . . . . . . . . . Exploration Rate (%) 44 | 6 86 98 62 35 82 17 77 13 12 95 17 64 23 13 43 13 Regions Visited 16 Branch Regions 4 Pre-discovered Areas 2 | . . 2 . . . . . . . . . . . . . . Known Exits Taken 5 | . 1 . 1 . . 1 . . . . 1 . . 1 . . Unknown Exits Taken 8 | 1 . 1 . 1 1 . . 1 1 1 . . 1 . . . Scrap Searched 3 | . . 3 . . . . . . . . . . . . . . Spaces Dug 97 | . 10 . 24 1 . 1 38 7 3 2 5 . 1 1 1 3 Terrain Destroyed 414 | . 47 . 47 1 . 1 137 70 81 5 5 . 3 11 3 3 Melee 27 | . . . 1 1 . 1 1 7 3 2 5 . 1 1 1 3 Projectile 15 | . . . . . . . . . 1 3 . . 2 7 2 . AOE 372 | . 47 . 46 . . . 136 63 77 . . . . 3 . . Terrain Rammed . | . . . . . . . . . . . . . . . . . Walls Destroyed . | . . . . . . . . . . . . . . . . . Machines Disabled . | . . . . . . . . . . . . . . . . . Actions | -11 -10 -10 -9 -9 -9 -7 -7 -7 -6 -6 -5 -5 -5 -4 -4 -4 --------- Run | Jun Mat Min Mat Sto Rec Fac Gar Fac Fac Ext Fac Gar Fac Fac Gar Fac Total 14903 | 103 685 830 915 340 772 822 2036 821 609 1337 615 2033 1129 766 517 573 Wait 2862 | . 34 25 100 79 100 223 831 45 57 163 20 789 23 220 94 59 Move 10694 | 87 556 780 718 237 622 528 1033 693 488 996 549 1059 1020 509 343 476 Hop 10 | . . . . . . . . . . . . . 4 4 1 1 Pick Up 88 | 6 15 7 10 2 2 7 7 4 3 2 7 3 8 3 2 . Fast Attach 66 | 4 4 2 9 1 . 2 7 7 4 5 4 4 8 1 1 3 Attach 66 | 3 4 . 2 . 4 8 11 4 4 4 . 8 3 4 3 4 Detach 67 | . 4 . 1 . 8 9 10 9 4 3 . 6 6 1 2 4 Swap 71 | . 7 3 20 6 6 3 3 4 5 4 2 . 5 3 . . Drop 101 | . 4 9 21 3 7 4 10 10 5 2 10 3 8 1 4 . Fire 468 | 3 54 4 33 11 20 37 83 31 29 28 18 59 25 19 14 . Melee 211 | . . . 1 1 1 1 20 14 3 31 5 54 19 1 45 15 Ram . | . . . . . . . . . . . . . . . . . Kick 45 | . . . . . . . 1 . 1 43 . . . . . . Crush 12 | . 3 . . . 1 . 4 . . . . . . . . 4 Escape Stasis 75 | . . . . . . . 16 . 6 . . 38 . . 8 7 Rewire 67 | . . . . . 1 . . . . 56 . 10 . . . . Trap . | . . . . . . . . . . . . . . . . . Miscellaneous . | . . . . . . . . . . . . . . . . . Route ------- -11/Junkyard -10/Materials (discovered 4 exits: *Mat x2 / *Min x2) -10/Mines (discovered 3 exits: *Mat x2 / [*Exi]) -9/Materials (discovered 4 exits: [*Mat] / *Min x2 / *Sto) -9/Storage -9/Recycling -7/Factory (discovered 2 exits: [*Fac] / Gar) -7/Garrison (discovered 3 exits: *Fac x3) -7/Factory (discovered 2 exits: [*Fac] / [*Low]) -6/Factory -6/Extension (discovered 3 exits: *Fac x2 / [*Cet]) -5/Factory (discovered 2 exits: [*Upp] / Gar) -5/Garrison (discovered 2 exits: *Fac x2) -5/Factory (discovered 2 exits: *Fac x2) -4/Factory (discovered 5 exits: Res x4 / Gar) -4/Garrison -4/Factory History --------- Turn | Location | Event 5 | -11/Junkyard | Discovered new exit (range 16) 159 | -11/Junkyard | Entered Materials 309 | -10/Materials | Build established: Mutant 637 | -10/Materials | Discovered new exit (range 16) 645 | -10/Materials | Discovered new exit (range 10) 699 | -10/Materials | Discovered new exit (range 13) 819 | -10/Materials | Identified exit to Mines 936 | -10/Materials | Discovered new exit (range 14) 1267 | -10/Materials | Entered Mines 1268 | -10/Mines | Assembled infested the area 1272 | -10/Mines | Met a Derelict bent on vengeance 1273 | -10/Mines | Met a Derelict shopkeep closing up shop 1475 | -10/Mines | Learned location of Zion (-6) 1478 | -10/Mines | Met a Derelict who couldn't figure out how to use a Trap Extractor 1811 | -10/Mines | Discovered new exit (range 8) 1838 | -10/Mines | Discovered new exit (range 15) 1865 | -10/Mines | Found the Drone Emporium 2091 | -10/Mines | Core integrity fell below 50% 2214 | -10/Mines | Received a Rocket Launcher from a helpful Derelict 2239 | -10/Mines | Discovered new exit (range 5) 2571 | -10/Mines | Entered Materials 2571 | -9/Materials | Evolved 2 slots: Propulsion x1, Utility x1 3026 | -9/Materials | Discovered new exit (range 15) 3347 | -9/Materials | Build established: Scavenger-Mutant 3355 | -9/Materials | Discovered new exit (range 16) 3471 | -9/Materials | Repaired Imp. Grenade Launcher 3504 | -9/Materials | Repaired Med. Armor Plating 3793 | -9/Materials | Identified exit to Mines 3793 | -9/Materials | Identified exit to Storage 3978 | -9/Materials | Entered Storage 4105 | -9/Storage | Repaired Med. Armor Plating 4267 | -9/Storage | Assisted by bots powering up and referring to "LRC-V3" 4459 | -9/Storage | Used back door to open Recycling access 4459 | -9/Storage | Discovered new exit (range 5) 4484 | -9/Storage | Entered Recycling 4484 | -9/Recycling | Accompanied by 4 allies 4487 | -9/Recycling | Found Scrap Engine 4820 | -9/Recycling | Discovered new exit (range 5) 5667 | -9/Recycling | Entered Factory 5667 | -7/Factory | Evolved 4 slots: Propulsion x1, Utility x3 6511 | -7/Factory | Discovered new exit (range 10) 6627 | -7/Factory | Build established: Construct 6895 | -7/Factory | Identified exit to Garrison 6898 | -7/Factory | Entered Garrison 6988 | -7/Garrison | Triggered checkpoint 7028 | -7/Garrison | Triggered checkpoint 7436 | -7/Garrison | Discovered new exit (range 8) 7486 | -7/Garrison | Triggered checkpoint 8334 | -7/Garrison | Triggered checkpoint 8400 | -7/Garrison | Triggered checkpoint 8637 | -7/Garrison | Discovered new exit (range 12) 8744 | -7/Garrison | Triggered checkpoint 8868 | -7/Garrison | Triggered checkpoint 8908 | -7/Garrison | Discovered new exit (range 10) 9007 | -7/Garrison | Lost 4 parts (1n1u2w) 9013 | -7/Garrison | Destroyed 8 combat bots 9090 | -7/Garrison | Triggered checkpoint 9162 | -7/Garrison | Core integrity fell below 50% 9252 | -7/Garrison | Installed Relay Interface Framework 9405 | -7/Garrison | Garrison Relay disabled 9492 | -7/Garrison | Entered Factory 9601 | -7/Factory | Discovered new exit (range 16) 9634 | -7/Factory | Discovered new exit (range 16) 10541 | -7/Factory | Cargo convoy interrupted 10573 | -7/Factory | Entered another Factory area 10573 | -6/Factory | Evolved 2 slots: Utility x1, Weapon x1 10695 | -6/Factory | Discovered new exit (range 9) 10923 | -6/Factory | First assault squad dispatched 11166 | -6/Factory | Entered Extension 11441 | -6/Extension | Rescued a captive Derelict 11441 | -6/Extension | Rescued a captive Derelict 11486 | -6/Extension | Rescued a captive Derelict 11486 | -6/Extension | Rescued a captive Derelict 11501 | -6/Extension | Energy Cycler disabled 11502 | -6/Extension | Rescued a captive Derelict 11503 | -6/Extension | Rescued a captive Derelict 11504 | -6/Extension | Rescued a captive Derelict 11506 | -6/Extension | Rescued a captive Derelict 11508 | -6/Extension | Rescued a captive Derelict 11515 | -6/Extension | Rescued a captive Derelict 12022 | -6/Extension | Spotted B-75 Beast 12362 | -6/Extension | Destroyed B-75 Beast 12371 | -6/Extension | Discovered new exit (range 16) 12372 | -6/Extension | Spotted B-75 Beast 12373 | -6/Extension | Destroyed B-75 Beast 12405 | -6/Extension | Extracted ID and sensor layout for unrecognized location from A7's data core 12600 | -6/Extension | Discovered new exit (range 10) 12601 | -6/Extension | Discovered new exit (range 6) 12730 | -6/Extension | Entered Factory 12730 | -5/Factory | Accompanied by 1 ally 12730 | -5/Factory | Evolved 2 slots: Utility x2 13111 | -5/Factory | Garrison activated, responded to threat 13180 | -5/Factory | Discovered new exit (range 19) 13431 | -5/Factory | Identified exit to Garrison 13432 | -5/Factory | Entered Garrison 13475 | -5/Garrison | Spotted B-75 Beast 13476 | -5/Garrison | Triggered checkpoint 13479 | -5/Garrison | Destroyed B-75 Beast 13553 | -5/Garrison | Discovered new exit (range 10) 13568 | -5/Garrison | Triggered checkpoint 13646 | -5/Garrison | Triggered checkpoint 13727 | -5/Garrison | Destroyed 11 combat bots 14016 | -5/Garrison | Build established: Mutant 14791 | -5/Garrison | Discovered new exit (range 13) 14798 | -5/Garrison | Spotted B-90 Cyclops 14878 | -5/Garrison | Lost 3 parts (2u1w) 15082 | -5/Garrison | Triggered checkpoint 15210 | -5/Garrison | Triggered checkpoint 15449 | -5/Garrison | Destroyed B-90 Cyclops 15489 | -5/Garrison | Rewired B-75 Beast 15611 | -5/Garrison | Destroyed Beast 6a 15678 | -5/Garrison | Triggered checkpoint 15702 | -5/Garrison | Expanded RIF knowledge: Robot Detection 15760 | -5/Garrison | Triggered checkpoint 15846 | -5/Garrison | Entered Factory 16049 | -5/Factory | Discovered new exit (range 5) 16661 | -5/Factory | Discovered new exit (range 8) 16670 | -5/Factory | Entered another Factory area 16670 | -4/Factory | Evolved 2 slots: Propulsion x1, Utility x1 16979 | -4/Factory | Build established: Hacker-Mutant 17233 | -4/Factory | Identified exit to Research 17268 | -4/Factory | Identified exit to Garrison 17273 | -4/Factory | Entered Garrison 17290 | -4/Garrison | Expanded RIF knowledge: Command Fork 17307 | -4/Garrison | Learned Factory security intel 17472 | -4/Garrison | Triggered checkpoint 17502 | -4/Garrison | Triggered checkpoint 17742 | -4/Garrison | Triggered checkpoint 17749 | -4/Garrison | Discovered new exit (range 12) 17756 | -4/Garrison | Entered Factory 18080 | -4/Factory | System corruption reached 10% 18085 | -4/Factory | Core integrity fell below 50% 18114 | -4/Factory | Lost 11 parts (1p2n7u1w) 18180 | -4/Factory | Core integrity fell below 20% 18181 | -4/Factory | Lost 4 parts (1n3u) 18185 | -4/Factory | Destroyed by P-70 Sage with Tesla Rifle Last Messages --------------- 18131_ Penetrated by Slug. 18132_ Med. Storage Unit destroyed. 18136_ Penetrated by Slug. 18139_ Treaded Centrium-Armored Exoskeleton destroyed. 18139_ Treaded Centrium-Armored Exoskeleton core remains intact and functional. 18139_ Penetrated by Slug. 18144_ System corrupted: Energy discharge (-23). 18145_ Acquired Force Lance. 18150_ Penetrated by Slug. 18150_ Assembly Bed disabled. 18150_ Scrap Engine destroyed. 18162_ System corrupted: Matter fused (-6). 18179_ Penetrated by Slug. 18180_ MIW5/&I|PMUEC0E3QF/OQO4YVC9F%H 18182_ Penetrated by Slug. 18182_ Subcomponent Replicator disabled. 18184_ Treaded Centrium-Armored Exoskeleton destroyed. 18185_ K-01 Serf cleans the Scanalyzer. 18185_ Critical hit (Burn: +37). Map ----- +----------------------------------------------------+ | ???????????????# #???????????????????????????? | | ???????????????# #???????????????????????????? | | ???????????????# #?###################???????? | | ??????????????# ### ????????? | | "?????????????# ???????? | | "?????????????# ????????? | | "?????????????# ????????? | | ""????????????# ????????? | | """" #????????# ??????????? | | """" #????##+## ????????????? | | """" #????# # ###########???????? | | #????# # #???????? | | #????# ############ T# + ! #???????? | | /#####?????## ##??????????#### # [[#???????? | | #??????????# #??????????????# # [[#???????? | | #??????????# #??????????????# #?#########???????? | | #??????????# #??????????????# #?????????????????? | | #?????????##+##########?????# #?????????????????? | | +########??# #????# #?????????????????? | | =# """""" #????# #?????????????????? | | """"""" # """"""????????# #?????????????????? | | """""""????# """"" ??######+###???????????????? | | """""""????# """""" #!p #???????????????? | | """"""" # Y # p""""" #???????????????? | | # """""" g# """"" #???????????????? | | """"""" # """""" Y@ "" #???????????????? | | """""""????# """"""g # p #???????????????? | | """"""?????# """"""Y # "" ! #???????????????? | | """""??????# # S"" #???????????????? | | ???????# # "" #???????????????? | | * ???????####+######### k #???????????????? | | ########???# ##########+####???????????????? | | ?# ##### ? ??????????????????? | | ## ?????????????????? | | |! ?? ????????????????? | | ## ?? ????????????????? | | #" ##### ?????????????????????? | | ########???# ##########????????????????????? | | ???????????### ###?????????????????????????????? | | ?????????????# #???????????????????????????????? | | ?????????????# #???????????????????????????????? | | ?????????????# #???????????????????????????????? | | ?????????????# #???????????????????????????????? | | ?????????????? ???????????????????????????????? | | ?????????????? ??????????????????????????????? | | ?????????????? ??????????????????????????????? | | ?????????????? ?"??????????????????????????????? | | ?????????????????????????????????????????????????? | | ?????????????????????????????????????????????????? | | ?????????????????????????????????????????????????? | +----------------------------------------------------+ Best States ------------- Heat Dissipation 74 Energy Generation 20 Energy Capacity 480 Matter Stores 396 Matter Capacity 450 Sight Range 16 Robot Scan Range 15 Terrain Scan Range 20 Terrain Scan Density 210 ECM Strength 2 Additional Mass Support 12 Armor Coverage 600 Resistance: TH 30 Propulsion Shielding 90 Weapon Cycling 20 Melee Speed Boost 20 Phase Shifting 5 Evasion (%) 62 Targeting Accuracy 8 Recoil Reduction 4 Particle Charging 20 Offensive Hacking 24 Relay Coupler Types 1 Relay Coupler Value 29 Item Schematics ----------------- Cmb. Linear Gravjet | -4/Factory | Hacked Robot Schematics ------------------ None Fabricated ------------ Nothing Alien Tech Used ----------------- None Achievements -------------- Deadly Force Giant Slayer Preemptive Strike Prolific Hacker Pyromaniac Challenges ------------ None Game ------ Seed NuclearEnergyFrame Manual? 0 Play Time 03:39:14 Cumulative 45.1 hours Start 2023.03.03 @ 14:06:49 End 2023.03.03 @ 17:49:18 Sessions 1 Manual Loads 0 Difficulty Rogue Special Mode None Game No. 42 Rogue 40 Adventurer 1 Explorer 1 Win Type - Total 0 Types 0/0/0/0/0/0/0/0/0 Lore% 35 Gallery% 41 Achievement% 34 Wizard Run 0 Options --------- ASCII 0 Keyboard 1 Movement Numpad Keybinds 0 Fullscreen 2 Font 18/Terminus Map View 76x50 Tactical HUD 1 Map Filters NONE Filters NONE Steam 1 RUN: 0064111d-9344-4d6e-80a8-40d15afb3bfd